[Event "2nd Serbian League-Vojvodina 2023"]
[Site "Novi Sad"]
[Date "2023.11.07"]
[Round "8.21"]
[White "Stankovic, Milos M"]
[Black "Mijatovic, Dusan"]
[Result "1-0"]
[ECO "E11"]
[WhiteElo "2249"]
[BlackElo "2139"]
[Annotator "RC"]
[PlyCount "85"]
[EventDate "2023.10.22"]
[EventType "team-tourn"]
[EventCountry "SRB"]
[SourceTitle "playchess.com"]
[Source "ChessBase"]
[SourceQuality "1"]
[TimeControl "40/5400+30:1800+30"]

1. d4 {[%emt 0:00:07]} Nf6 {[%emt 0:00:08]} 2. c4 {[%emt 0:01:07]} e6 {[%emt 0:00:09]} 3. g3 {[%emt 0:00:26]} Bb4+ {[%emt 0:01:02]} 4. Bd2 {[%emt 0:00:07]} a5 {[%emt 0:01:23]} 5. Bg2 {[%emt 0:00:16]} d6 {[%emt 0:00:13]} 6. Nf3 {[%emt 0:02:49]} Nbd7 {[%emt 0:00:42]} 7. O-O {[%emt 0:00:30]} e5 {[%emt 0:00:05]} 8. Nc3 {[%emt 0:04:06]} exd4 {[%emt 0:02:46]} 9. Nxd4 {[%emt 0:00:06]} O-O {[%emt 0:00:10]} 10. Nd5 {[%emt 1:25:56]} Bxd2 {[%emt 0:06:34]} 11. Qxd2 {[%emt 0:00:00]} c6 {[%emt 1:22:48]} 12. Ne3 {[%emt 0:01:00]} Nb6 {[%emt 0:00:30]} 13. Rfd1 {[%emt 0:00:00]} Re8 14. Nxc6 {[%emt 0:01:00]} bxc6 {[%emt 0:00:00]} 15. Bxc6 {[%emt 0:00:30]} Bd7 {[%emt 0:00:00]} 16. Bxa8 {[%emt 0:00:00]} Qxa8 {[%emt 0:00:00]} 17. Qxd6 {[%emt 0:01:00]} Re6 {[%emt 0:02:30]} 18. Qd4 {[%emt 0:00:30]} Qc6 {[%emt 0:00:30]} 19. Nd5 {[%emt 0:00:00]} Be8 20. Nxb6 {[%emt 0:01:00]} Qxb6 {[%emt 0:01:00]} 21. Qxb6 {[%emt 0:00:00]} Rxb6 {[%emt 0:00:00]} 22. b3 {[%emt 0:01:00]} Kf8 {[%emt 0:01:00]} 23. f3 {[%emt 0:00:30]} Bc6 {[%emt 0:00:00]} 24. Rab1 {[%emt 0:00:30]} Nd7 {[%emt 0:00:00]} 25. a3 {[%emt 0:00:00]} Ne5 {[%emt 0:00:00]} 26. Rdc1 {[%emt 0:01:00]} g5 {[%emt 0:02:00]} 27. b4 {[%emt 0:00:00]} axb4 {[%emt 0:00:00]} 28. axb4 {[%emt 0:01:00]} h5 {[%emt 0:00:00]} 29. b5 {[%emt 0:00:00]} Bd7 {[%emt 0:01:30]} 30. Kf2 {[%emt 0:01:00]} Ke7 {[%emt 0:00:00]} 31. Ke3 {[%emt 0:00:00]} f6 {[%emt 0:01:00]} 32. Rb4 {[%emt 0:01:00]} Rb8 {[%emt 0:00:30]} 33. Rcb1 {[%emt 0:00:30]} Be6 {[%emt 0:00:30]} 34. c5 {[%emt 0:00:30]} Nc4+ {[%emt 0:00:30]} 35. Kd4 {[%emt 0:00:30]} Na3 {[%emt 0:00:00]} 36. R1b2 {[%emt 0:00:30]} Rd8+ {[%emt 0:00:00]} 37. Kc3 {[%emt 0:00:00]} Rb8 38. b6 {[%emt 0:01:00]} Bd5 {[%emt 0:02:00]} 39. Ra4 {[%emt 0:00:30]} Nc4 {[%emt 0:00:00]} 40. Rxc4 {[%emt 0:00:00]} Bxc4 {[%emt 0:00:00]} 41. Kxc4 {[%emt 0:00:00]} Kd7 42. Rd2+ {[%emt 0:31:30]} Kc8 {[%emt 0:30:09]} 43. Kb5 {[%emt 0:00:30]} 1-0

[Event "2nd Serbian League-Vojvodina 2023"]
[Site "Novi Sad"]
[Date "2023.11.07"]
[Round "8.22"]
[White "Mijatovic, Dejan"]
[Black "Milekic, Daniel"]
[Result "1/2-1/2"]
[ECO "D85"]
[WhiteElo "2185"]
[BlackElo "2236"]
[Annotator "RC"]
[PlyCount "101"]
[EventDate "2023.10.22"]
[EventType "team-tourn"]
[EventCountry "SRB"]
[SourceTitle "playchess.com"]
[Source "ChessBase"]
[SourceQuality "1"]
[TimeControl "40/5400+30:1800+30"]

1. d4 {[%emt 1:31:00]} Nf6 {[%emt 1:31:00]} 2. c4 {[%emt 0:00:30]} g6 {[%emt 0:00:30]} 3. Nc3 {[%emt 0:00:30]} d5 {[%emt 0:00:30]} 4. cxd5 {[%emt 0:00:30]} Nxd5 {[%emt 0:00:30]} 5. Bd2 {[%emt 0:00:30]} Bg7 {[%emt 0:00:30]} 6. e4 {[%emt 0:00:30]} Nxc3 {[%emt 0:00:30]} 7. Bxc3 {[%emt 0:00:30]} O-O {[%emt 0:00:30]} 8. Bc4 {[%emt 0:00:30]} Nd7 {[%emt 0:00:30]} 9. Ne2 {[%emt 0:00:30]} c5 {[%emt 0:00:30]} 10. O-O {[%emt 0:00:30]} cxd4 {[%emt 0:00:30]} 11. Bxd4 {[%emt 0:00:30]} Ne5 {[%emt 0:00:30]} 12. Bb3 {[%emt 0:00:30]} Bg4 {[%emt 0:00:30]} 13. f3 {[%emt 0:00:30]} Bd7 {[%emt 0:00:30]} 14. f4 {[%emt 0:00:30]} Ng4 {[%emt 0:00:30]} 15. Bxg7 {[%emt 0:00:30]} Kxg7 {[%emt 0:00:30]} 16. Qd4+ {[%emt 0:00:30]} Kg8 {[%emt 0:00:30]} 17. Rfd1 {[%emt 0:00:30]} Bb5 {[%emt 0:00:30]} 18. Qxd8 {[%emt 0:00:30]} Raxd8 {[%emt 0:00:30]} 19. Nc3 {[%emt 0:00:30]} Bc6 {[%emt 0:00:30]} 20. Rxd8 {[%emt 0:00:30]} Rxd8 {[%emt 0:00:30]} 21. Rd1 {[%emt 0:00:30]} Rxd1+ {[%emt 0:00:30]} 22. Bxd1 {[%emt 0:00:30]} Nf6 {[%emt 0:00:30]} 23. Bc2 {[%emt 0:00:30]} e5 {[%emt 0:00:30]} 24. fxe5 {[%emt 0:00:30]} Nd7 {[%emt 0:00:30]} 25. e6 {[%emt 0:00:30]} fxe6 {[%emt 0:00:30]} 26. Kf2 {[%emt 0:00:30]} Kf7 {[%emt 0:00:30]} 27. b4 {[%emt 0:00:30]} b6 {[%emt 0:00:30]} 28. Ke3 {[%emt 0:00:30]} Ke7 {[%emt 0:00:30]} 29. Kd4 {[%emt 0:00:30]} e5+ {[%emt 0:00:30]} 30. Ke3 {[%emt 0:00:30]} Nf6 {[%emt 0:00:30]} 31. Bd1 {[%emt 0:00:30]} Kd6 {[%emt 0:00:30]} 32. Be2 {[%emt 0:00:30]} h6 {[%emt 0:00:30]} 33. Bd1 {[%emt 0:00:30]} g5 {[%emt 0:00:30]} 34. Be2 {[%emt 0:00:30]} a5 {[%emt 0:00:30]} 35. a3 {[%emt 0:00:30]} Ne8 {[%emt 0:00:30]} 36. Bd1 {[%emt 0:00:30]} Nc7 {[%emt 0:00:30]} 37. Be2 {[%emt 0:00:30]} Ne6 {[%emt 0:00:30]} 38. Bd3 {[%emt 0:00:30]} Nd4 {[%emt 0:00:30]} 39. Ne2 {[%emt 0:00:30]} Nxe2 {[%emt 0:00:30]} 40. Bxe2 {[%emt 0:00:30]} Ba4 {[%emt 0:00:30]} 41. Kd2 {[%emt 0:30:30]} Be8 {[%emt 0:30:30]} 42. Ke3 {[%emt 0:00:30]} Bf7 {[%emt 0:00:30]} 43. Bb5 {[%emt 0:00:30]} Be6 {[%emt 0:00:30]} 44. Kd3 {[%emt 0:00:30]} h5 {[%emt 0:00:30]} 45. Ke3 {[%emt 0:00:30]} h4 {[%emt 0:00:30]} 46. Kd3 {[%emt 0:00:30]} Bf7 {[%emt 0:00:30]} 47. g3 {[%emt 0:00:30]} Bh5 {[%emt 0:00:30]} 48. Ke3 {[%emt 0:00:30]} Bg4 {[%emt 0:00:30]} 49. Kd3 {[%emt 0:00:30]} Be6 {[%emt 0:00:30]} 50. Ke3 {[%emt 0:00:30]} Ke7 {[%emt 0:00:30]} 51. Be2 {[%emt 0:00:30]} 1/2-1/2

[Event "2nd Serbian League-Vojvodina 2023"]
[Site "Novi Sad"]
[Date "2023.11.07"]
[Round "8.23"]
[White "Radlovacki, Jovan"]
[Black "Bojkovic, Slobodan"]
[Result "1-0"]
[ECO "B40"]
[WhiteElo "2268"]
[BlackElo "2031"]
[Annotator "RC"]
[PlyCount "83"]
[EventDate "2023.10.22"]
[EventType "team-tourn"]
[EventCountry "SRB"]
[SourceTitle "playchess.com"]
[Source "ChessBase"]
[SourceQuality "1"]
[TimeControl "40/5400+30:1800+30"]

1. e4 {[%emt 1:31:00]} c5 {[%emt 1:31:00]} 2. Nf3 {[%emt 0:00:30]} e6 {[%emt 0:00:30]} 3. c3 {[%emt 0:00:30]} Nf6 {[%emt 0:00:30]} 4. d3 {[%emt 0:00:30]} Nc6 {[%emt 0:00:30]} 5. g3 {[%emt 0:00:30]} Be7 {[%emt 0:00:30]} 6. Bg2 {[%emt 0:00:30]} d5 {[%emt 0:00:30]} 7. Qe2 {[%emt 0:00:30]} b6 {[%emt 0:00:30]} 8. O-O {[%emt 0:00:30]} Bb7 {[%emt 0:00:30]} 9. Nbd2 {[%emt 0:00:30]} Rc8 {[%emt 0:00:30]} 10. e5 {[%emt 0:00:30]} Ng8 {[%emt 0:00:30]} 11. h4 {[%emt 0:00:30]} h5 {[%emt 0:00:30]} 12. Re1 {[%emt 0:00:30]} Nh6 {[%emt 0:00:30]} 13. Nf1 {[%emt 0:00:30]} Kf8 {[%emt 0:00:30]} 14. Ng5 {[%emt 0:00:30]} g6 {[%emt 0:00:30]} 15. Nh2 {[%emt 0:00:30]} Kg7 {[%emt 0:00:30]} 16. Nh3 {[%emt 0:00:30]} Nf5 {[%emt 0:00:30]} 17. Nf4 {[%emt 0:00:30]} Qd7 {[%emt 0:00:30]} 18. Bh3 {[%emt 0:00:30]} Rce8 {[%emt 0:00:30]} 19. Nf3 {[%emt 0:00:30]} d4 {[%emt 0:00:30]} 20. c4 {[%emt 0:00:30]} Nd8 {[%emt 0:00:30]} 21. Bg2 {[%emt 0:00:30]} Bc6 {[%emt 0:00:30]} 22. Bd2 {[%emt 0:00:30]} a5 {[%emt 0:00:30]} 23. b3 {[%emt 0:00:30]} Bb7 {[%emt 0:00:30]} 24. a3 {[%emt 0:00:30]} Nc6 {[%emt 0:00:30]} 25. Rab1 {[%emt 0:00:30]} Ra8 {[%emt 0:00:30]} 26. Nh3 {[%emt 0:00:30]} Nd8 {[%emt 0:00:30]} 27. Nhg5 {[%emt 0:00:30]} b5 {[%emt 0:00:30]} 28. Ne4 {[%emt 0:00:30]} Bc6 {[%emt 0:00:30]} 29. cxb5 {[%emt 0:00:30]} Bxb5 {[%emt 0:00:30]} 30. Rec1 {[%emt 0:00:30]} Qa7 {[%emt 0:00:30]} 31. Bg5 {[%emt 0:00:30]} Nb7 {[%emt 0:00:30]} 32. Bf6+ {[%emt 0:00:30]} Bxf6 {[%emt 0:00:30]} 33. exf6+ {[%emt 0:00:30]} Kf8 {[%emt 0:00:30]} 34. Ne5 {[%emt 0:00:30]} Rc8 {[%emt 0:00:30]} 35. Ng5 {[%emt 0:00:30]} Be8 {[%emt 0:00:30]} 36. b4 {[%emt 0:00:30]} axb4 {[%emt 0:00:30]} 37. axb4 {[%emt 0:00:30]} Nfd6 {[%emt 0:00:30]} 38. Nxg6+ {[%emt 0:00:30]} fxg6 {[%emt 0:00:30]} 39. Qxe6 {[%emt 0:00:30]} Rc7 {[%emt 0:00:30]} 40. bxc5 {[%emt 0:00:30]} Bf7 {[%emt 0:00:30]} 41. Nxf7 {[%emt 0:30:30]} Nxf7 {[%emt 0:30:30]} 42. Rxb7 {[%emt 0:00:30]} 1-0

[Event "2nd Serbian League-Vojvodina 2023"]
[Site "Novi Sad"]
[Date "2023.11.08"]
[Round "9.1"]
[White "Nevednichy, Vladislav"]
[Black "Skvortsov, Andrei"]
[Result "1-0"]
[ECO "A29"]
[WhiteElo "2447"]
[BlackElo "2294"]
[Annotator "RC"]
[PlyCount "105"]
[EventDate "2023.10.22"]
[EventType "team-tourn"]
[EventCountry "SRB"]
[SourceTitle "playchess.com"]
[Source "ChessBase"]
[SourceQuality "1"]
[TimeControl "40/5400+30:1800+30"]

1. c4 {[%emt 0:00:16]} e5 {[%emt 0:01:02]} 2. Nc3 {[%emt 0:00:06]} Nf6 {[%emt 0:00:07]} 3. Nf3 {[%emt 0:00:42]} Nc6 {[%emt 0:00:05]} 4. g3 {[%emt 1:31:26]} Bc5 {[%emt 0:05:47]} 5. Bg2 {[%emt 0:00:00]} a6 {[%emt 1:25:59]} 6. O-O {[%emt 0:00:00]} d6 {[%emt 0:00:30]} 7. e3 {[%emt 0:00:00]} O-O {[%emt 0:00:00]} 8. a3 {[%emt 0:02:00]} Rb8 {[%emt 0:00:00]} 9. Qc2 {[%emt 0:00:00]} Ba7 {[%emt 0:01:30]} 10. b4 {[%emt 0:00:00]} Ne7 {[%emt 0:00:30]} 11. h3 {[%emt 0:00:00]} Bf5 {[%emt 0:00:00]} 12. d3 {[%emt 0:00:00]} Ng6 {[%emt 0:00:00]} 13. Kh2 {[%emt 0:00:00]} b5 {[%emt 0:00:00]} 14. e4 {[%emt 0:00:00]} Bd7 {[%emt 0:00:00]} 15. c5 {[%emt 0:00:00]} dxc5 {[%emt 0:00:00]} 16. Be3 {[%emt 0:00:00]} Bc6 {[%emt 0:00:00]} 17. bxc5 {[%emt 0:00:00]} Qe7 {[%emt 0:00:00]} 18. d4 {[%emt 0:00:00]} Bb7 {[%emt 0:00:00]} 19. Rad1 {[%emt 0:00:00]} c6 {[%emt 0:00:00]} 20. dxe5 {[%emt 0:00:00]} Nd7 {[%emt 0:00:00]} 21. Nd4 {[%emt 0:00:00]} Ngxe5 {[%emt 0:00:00]} 22. Nf5 {[%emt 0:00:00]} Qe6 {[%emt 0:00:00]} 23. Rd6 {[%emt 0:00:00]} Qe8 {[%emt 0:00:00]} 24. Rfd1 {[%emt 0:00:00]} Nxc5 {[%emt 0:00:00]} 25. Na4 {[%emt 0:00:00]} Nxa4 {[%emt 0:00:00]} 26. Bxa7 {[%emt 0:00:00]} Rc8 {[%emt 0:00:00]} 27. f4 {[%emt 0:00:00]} Ng6 {[%emt 0:00:00]} 28. Rd7 {[%emt 0:00:00]} Ba8 {[%emt 0:00:00]} 29. h4 {[%emt 0:10:30]} c5 {[%emt 0:09:30]} 30. e5 {[%emt 0:00:30]} Bxg2 {[%emt 0:00:00]} 31. Kxg2 {[%emt 0:00:30]} h5 {[%emt 0:01:00]} 32. R1d6 {[%emt 0:00:30]} Rc6 {[%emt 0:00:30]} 33. Kh2 {[%emt 0:00:30]} Rxd6 {[%emt 0:00:00]} 34. Rxd6 {[%emt 0:00:30]} Ne7 {[%emt 0:01:00]} 35. Nxg7 {[%emt 0:00:30]} Kxg7 {[%emt 0:00:30]} 36. f5 {[%emt 0:00:00]} Ng6 37. fxg6 {[%emt 0:01:00]} Qxe5 {[%emt 0:01:00]} 38. Rxa6 {[%emt 0:00:30]} Nc3 {[%emt 0:00:30]} 39. Bxc5 {[%emt 0:00:30]} Qxc5 {[%emt 0:00:00]} 40. gxf7 {[%emt 0:00:00]} Rxf7 {[%emt 0:00:00]} 41. Qg6+ {[%emt 0:23:02]} Kf8 {[%emt 0:08:33]} 42. Qh6+ {[%emt 0:08:28]} Rg7 43. Qf6+ {[%emt 0:00:00]} Kg8 {[%emt 0:03:33]} 44. Rc6 {[%emt 0:00:20]} Qe7 45. Rc8+ {[%emt 0:01:10]} Kh7 {[%emt 0:21:24]} 46. Qf5+ {[%emt 0:00:30]} Rg6 {[%emt 0:00:30]} 47. Qxh5+ {[%emt 0:00:30]} Rh6 {[%emt 0:00:30]} 48. Qf5+ {[%emt 0:00:30]} Rg6 {[%emt 0:00:00]} 49. Qf6 {[%emt 0:00:00]} Rg7 50. Qf5+ Rg6 51. Qh5+ Rh6 52. Qf5+ Rg6 53. h5 {[%emt 0:01:35]} 1-0

[Event "2nd Serbian League-Vojvodina 2023"]
[Site "Novi Sad"]
[Date "2023.11.08"]
[Round "9.2"]
[White "Levitan, Caleb Levi"]
[Black "Stoleriu, George"]
[Result "1/2-1/2"]
[ECO "B13"]
[WhiteElo "2219"]
[BlackElo "2400"]
[Annotator "RC"]
[PlyCount "49"]
[EventDate "2023.10.22"]
[EventType "team-tourn"]
[EventCountry "SRB"]
[SourceTitle "playchess.com"]
[Source "ChessBase"]
[SourceQuality "1"]
[TimeControl "40/5400+30:1800+30"]

1. e4 {[%emt 0:00:05]} c6 {[%emt 0:00:04]} 2. d4 {[%emt 0:00:07]} d5 {[%emt 0:00:02]} 3. exd5 {[%emt 0:00:07]} cxd5 {[%emt 0:00:02]} 4. Bd3 {[%emt 0:00:08]} Nc6 {[%emt 0:00:03]} 5. c3 {[%emt 0:00:05]} Nf6 {[%emt 0:00:02]} 6. Bf4 {[%emt 0:00:09]} Bg4 {[%emt 0:00:04]} 7. Qb3 {[%emt 0:00:20]} e5 {[%emt 0:00:04]} 8. h3 {[%emt 0:06:24]} Na5 {[%emt 0:00:22]} 9. Qc2 {[%emt 0:00:37]} exf4 {[%emt 0:00:02]} 10. hxg4 {[%emt 0:00:07]} Nxg4 {[%emt 0:00:02]} 11. Qe2+ {[%emt 0:01:48]} Qe7 {[%emt 0:00:04]} 12. Nh3 {[%emt 0:00:32]} f3 {[%emt 0:00:03]} 13. Qxe7+ {[%emt 0:00:52]} Bxe7 {[%emt 0:01:51]} 14. g3 {[%emt 0:00:48]} g6 {[%emt 0:13:47]} 15. Nd2 {[%emt 0:01:34]} O-O {[%emt 0:00:12]} 16. Nxf3 {[%emt 0:00:25]} b5 {[%emt 0:01:44]} 17. Nf4 {[%emt 0:17:47]} Nf6 {[%emt 0:05:50]} 18. O-O {[%emt 0:03:38]} Rab8 {[%emt 0:03:18]} 19. b4 {[%emt 0:05:05]} Nc4 {[%emt 0:09:41]} 20. a4 {[%emt 0:01:31]} Bd6 {[%emt 0:00:15]} 21. axb5 {[%emt 0:06:59]} Bxf4 {[%emt 0:01:10]} 22. gxf4 {[%emt 0:02:18]} Rfc8 {[%emt 0:03:40]} 23. Rfc1 {[%emt 0:16:07]} Nh5 {[%emt 0:00:58]} 24. Rxa7 {[%emt 0:02:28]} Nxf4 {[%emt 0:00:43]} 25. Bxc4 {[%emt 0:01:03]} 1/2-1/2

[Event "2nd Serbian League-Vojvodina 2023"]
[Site "Novi Sad"]
[Date "2023.11.08"]
[Round "9.3"]
[White "Sekulic, Dusan"]
[Black "Ljepic, Andrej"]
[Result "0-1"]
[ECO "E11"]
[WhiteElo "2145"]
[BlackElo "2236"]
[Annotator "RC"]
[PlyCount "106"]
[EventDate "2023.10.22"]
[EventType "team-tourn"]
[EventCountry "SRB"]
[SourceTitle "playchess.com"]
[Source "ChessBase"]
[SourceQuality "1"]
[TimeControl "40/5400+30:1800+30"]

1. d4 {[%emt 0:00:11]} Nf6 {[%emt 0:00:10]} 2. Nf3 {[%emt 0:01:01]} e6 {[%emt 0:00:07]} 3. c4 {[%emt 0:00:08]} Bb4+ {[%emt 0:00:12]} 4. Nbd2 {[%emt 0:00:14]} O-O {[%emt 0:00:22]} 5. a3 {[%emt 0:00:21]} Bxd2+ {[%emt 0:01:27]} 6. Qxd2 {[%emt 0:00:14]} b6 {[%emt 0:00:53]} 7. g3 {[%emt 0:05:02]} Bb7 {[%emt 0:01:21]} 8. Bg2 {[%emt 0:00:04]} a5 {[%emt 0:01:35]} 9. b3 {[%emt 0:01:20]} d6 {[%emt 0:02:18]} 10. O-O {[%emt 0:00:24]} Nbd7 {[%emt 0:00:38]} 11. Bb2 {[%emt 0:00:52]} Qe7 {[%emt 0:04:23]} 12. Rfd1 {[%emt 0:02:50]} Be4 {[%emt 0:03:49]} 13. Bf1 {[%emt 0:02:25]} h6 {[%emt 0:06:18]} 14. Ne1 {[%emt 0:01:08]} e5 {[%emt 0:02:33]} 15. f3 {[%emt 0:01:49]} Bg6 {[%emt 0:01:26]} 16. e4 {[%emt 0:10:24]} exd4 {[%emt 0:15:10]} 17. Qxd4 {[%emt 0:15:27]} Nc5 {[%emt 0:01:18]} 18. Qc3 {[%emt 0:00:26]} a4 {[%emt 0:00:29]} 19. b4 {[%emt 0:00:17]} Nb3 {[%emt 0:00:04]} 20. Rab1 {[%emt 0:00:44]} c5 {[%emt 0:00:53]} 21. Nc2 {[%emt 0:01:06]} Ne8 {[%emt 0:05:46]} 22. Re1 {[%emt 0:01:49]} f6 {[%emt 0:03:30]} 23. Bg2 {[%emt 0:02:17]} Qa7 {[%emt 0:04:17]} 24. b5 {[%emt 0:00:42]} Nc7 {[%emt 0:06:33]} 25. Rbd1 {[%emt 0:05:56]} Rad8 {[%emt 0:01:27]} 26. f4 {[%emt 0:01:30]} Bh5 {[%emt 0:04:45]} 27. Rd3 {[%emt 0:03:25]} Ne6 {[%emt 0:01:52]} 28. Rd5 {[%emt 0:04:57]} Bf7 {[%emt 0:07:06]} 29. e5 {[%emt 0:01:40]} fxe5 {[%emt 0:08:56]} 30. fxe5 {[%emt 0:03:00]} Ned4 {[%emt 0:02:54]} 31. Rxd6 {[%emt 0:13:26]} Rxd6 {[%emt 0:00:31]} 32. exd6 {[%emt 0:00:28]} Qd7 {[%emt 0:00:40]} 33. Ne3 {[%emt 0:03:22]} Qxd6 {[%emt 0:00:44]} 34. Nd5 {[%emt 0:00:33]} Bh5 {[%emt 0:02:53]} 35. Nf4 {[%emt 0:02:50]} Bf7 {[%emt 0:01:09]} 36. Nd5 {[%emt 0:00:48]} Kh8 {[%emt 0:00:35]} 37. Qe3 {[%emt 0:01:49]} Be6 {[%emt 0:03:33]} 38. Qe5 {[%emt 0:00:47]} Qxe5 {[%emt 0:01:38]} 39. Rxe5 {[%emt 0:00:03]} Bxd5 {[%emt 0:00:41]} 40. Bxd5 {[%emt 0:00:21]} Nf3+ {[%emt 0:00:57]} 41. Bxf3 {[%emt 0:32:04]} Rxf3 {[%emt 0:30:02]} 42. Re6 {[%emt 0:02:01]} Nd2 {[%emt 0:01:23]} 43. Rxh6+ {[%emt 0:03:05]} Kg8 {[%emt 0:00:03]} 44. Rg6 {[%emt 0:02:10]} Nxc4 {[%emt 0:00:13]} 45. Bxg7 {[%emt 0:00:46]} Kf7 {[%emt 0:00:17]} 46. Rg4 {[%emt 0:00:06]} Ne3 {[%emt 0:00:07]} 47. Rf4+ {[%emt 0:03:14]} Rxf4 {[%emt 0:00:07]} 48. gxf4 {[%emt 0:00:05]} Kxg7 {[%emt 0:00:02]} 49. Kf2 {[%emt 0:00:07]} Nf5 {[%emt 0:00:16]} 50. Kf3 {[%emt 0:00:15]} Kf6 {[%emt 0:00:30]} 51. Ke4 {[%emt 0:00:52]} Nd6+ {[%emt 0:00:28]} 52. Kd5 {[%emt 0:00:08]} Nxb5 {[%emt 0:00:31]} 53. h4 {[%emt 0:00:13]} Nd4 {[%emt 0:07:08]} 0-1

[Event "2nd Serbian League-Vojvodina 2023"]
[Site "Novi Sad"]
[Date "2023.11.08"]
[Round "9.4"]
[White "Dimitrijevic, Nenad"]
[Black "Kovacevic, Sinisa"]
[Result "0-1"]
[ECO "A07"]
[WhiteElo "2196"]
[BlackElo "2240"]
[Annotator "RC"]
[PlyCount "56"]
[EventDate "2023.10.22"]
[EventType "team-tourn"]
[EventCountry "SRB"]
[SourceTitle "playchess.com"]
[Source "ChessBase"]
[SourceQuality "1"]
[TimeControl "40/5400+30:1800+30"]

1. b3 {[%emt 0:03:55]} d5 {[%emt 0:01:04]} 2. Bb2 {[%emt 0:00:10]} Nf6 {[%emt 0:00:30]} 3. Nf3 {[%emt 0:00:10]} Bf5 {[%emt 0:02:03]} 4. g3 {[%emt 0:02:35]} e6 {[%emt 0:00:56]} 5. Bg2 {[%emt 0:00:06]} c5 {[%emt 1:28:27]} 6. O-O {[%emt 0:00:19]} Nc6 {[%emt 0:00:00]} 7. d3 {[%emt 0:00:02]} Be7 {[%emt 0:00:00]} 8. Nbd2 {[%emt 0:01:20]} O-O {[%emt 0:00:00]} 9. Nh4 {[%emt 0:01:36]} Bg4 {[%emt 0:00:00]} 10. h3 {[%emt 0:00:21]} Bh5 {[%emt 0:00:00]} 11. g4 {[%emt 0:00:41]} Nd7 {[%emt 0:00:00]} 12. gxh5 {[%emt 0:07:55]} Bxh4 {[%emt 0:00:00]} 13. e4 {[%emt 0:00:03]} d4 {[%emt 0:00:00]} 14. f4 {[%emt 0:01:45]} e5 {[%emt 0:00:00]} 15. Kh1 {[%emt 0:13:33]} exf4 {[%emt 0:00:00]} 16. Rxf4 {[%emt 0:05:35]} Nce5 {[%emt 0:00:00]} 17. Qe2 {[%emt 0:04:14]} Bg3 {[%emt 0:00:00]} 18. Rf5 {[%emt 0:01:43]} g6 {[%emt 0:00:00]} 19. Rff1 {[%emt 0:02:23]} Qh4 {[%emt 0:00:00]} 20. hxg6 {[%emt 0:02:15]} fxg6 {[%emt 0:00:00]} 21. Nc4 {[%emt 0:10:22]} Bf2 {[%emt 0:00:00]} 22. Nd2 {[%emt 0:05:26]} Qg3 {[%emt 0:00:00]} 23. Rfd1 {[%emt 0:02:37]} Nf6 {[%emt 0:00:00]} 24. Nf1 {[%emt 0:00:27]} Qh4 {[%emt 0:00:00]} 25. Bc1 {[%emt 0:06:13]} Nh5 {[%emt 0:00:00]} 26. Kh2 {[%emt 0:04:59]} Ng3 {[%emt 0:00:00]} 27. Nxg3 {[%emt 0:00:51]} Qxg3+ {[%emt 0:00:00]} 28. Kh1 {[%emt 0:00:03]} Nf3 {[%emt 0:00:00]} 0-1

[Event "2nd Serbian League-Vojvodina 2023"]
[Site "Novi Sad"]
[Date "2023.11.08"]
[Round "9.5"]
[White "Parezanin, Darko"]
[Black "Bokan, Danko"]
[Result "1-0"]
[ECO "C24"]
[WhiteElo "2192"]
[BlackElo "2135"]
[Annotator "RC"]
[PlyCount "95"]
[EventDate "2023.10.22"]
[EventType "team-tourn"]
[EventCountry "SRB"]
[SourceTitle "playchess.com"]
[Source "ChessBase"]
[SourceQuality "1"]
[TimeControl "40/5400+30:1800+30"]

1. e4 {[%emt 0:00:22]} e5 {[%emt 0:00:07]} 2. Bc4 {[%emt 0:00:11]} c6 {[%emt 0:00:51]} 3. d3 {[%emt 0:00:23]} d5 {[%emt 0:01:20]} 4. exd5 {[%emt 0:00:04]} cxd5 {[%emt 0:00:05]} 5. Bb3 {[%emt 0:00:07]} Nc6 {[%emt 0:01:55]} 6. Nf3 {[%emt 0:00:05]} Nf6 {[%emt 0:02:43]} 7. O-O {[%emt 0:00:17]} Be7 {[%emt 0:00:57]} 8. Re1 {[%emt 1:33:01]} Bg4 {[%emt 0:10:15]} 9. h3 {[%emt 0:00:00]} Bxf3 {[%emt 0:05:20]} 10. Qxf3 {[%emt 0:00:00]} O-O {[%emt 0:01:32]} 11. c3 {[%emt 0:00:00]} h6 {[%emt 0:01:21]} 12. Nd2 {[%emt 0:00:00]} Qd6 {[%emt 0:12:55]} 13. Nf1 {[%emt 0:00:00]} Rfd8 {[%emt 0:18:38]} 14. Ng3 {[%emt 0:00:00]} Bf8 {[%emt 0:00:37]} 15. Nf5 {[%emt 0:00:00]} Qe6 {[%emt 0:02:05]} 16. g4 {[%emt 0:00:00]} Ne7 {[%emt 0:09:59]} 17. Bf4 {[%emt 0:00:00]} Nxf5 {[%emt 0:00:32]} 18. Rxe5 {[%emt 0:00:00]} Nh4 {[%emt 0:00:39]} 19. Qg3 {[%emt 0:00:00]} Qc6 {[%emt 0:07:30]} 20. Qxh4 {[%emt 0:00:00]} g5 {[%emt 0:05:03]} 21. Bxg5 {[%emt 0:00:00]} hxg5 {[%emt 0:00:08]} 22. Qxg5+ {[%emt 0:00:00]} Bg7 {[%emt 0:00:23]} 23. Qf5 {[%emt 0:00:00]} Re8 {[%emt 0:06:51]} 24. Rae1 {[%emt 0:00:00]} Rxe5 {[%emt 0:02:20]} 25. Rxe5 {[%emt 0:00:00]} Re8 {[%emt 0:02:00]} 26. Rxe8+ {[%emt 0:00:00]} Qxe8 {[%emt 0:00:03]} 27. g5 {[%emt 0:00:00]} Qe6 {[%emt 0:05:16]} 28. Qxe6 {[%emt 0:00:00]} fxe6 {[%emt 0:00:01]} 29. gxf6 {[%emt 0:00:00]} Bxf6 {[%emt 0:00:01]} 30. f4 {[%emt 0:00:00]} Kf7 {[%emt 0:00:06]} 31. f5 {[%emt 0:00:00]} Ke7 {[%emt 0:00:18]} 32. Kf2 {[%emt 0:00:00]} Kd6 {[%emt 0:00:48]} 33. fxe6 {[%emt 0:00:00]} Kxe6 {[%emt 0:00:08]} 34. Ke3 {[%emt 0:00:00]} Ke5 {[%emt 0:00:25]} 35. d4+ {[%emt 0:00:00]} Ke6 {[%emt 0:04:48]} 36. Bd1 {[%emt 0:00:00]} Bg5+ {[%emt 0:00:00]} 37. Kd3 {[%emt 0:00:00]} b5 {[%emt 0:00:00]} 38. a4 {[%emt 0:00:00]} bxa4 {[%emt 0:00:00]} 39. Bxa4 {[%emt 0:00:00]} Kd6 {[%emt 0:00:22]} 40. b3 {[%emt 0:00:00]} Bd8 {[%emt 0:00:31]} 41. c4 {[%emt 0:05:45]} dxc4+ {[%emt 0:30:03]} 42. bxc4 {[%emt 0:00:08]} Bf6 {[%emt 0:00:42]} 43. Ke4 {[%emt 0:00:14]} Be7 {[%emt 0:00:21]} 44. c5+ {[%emt 0:00:07]} Ke6 {[%emt 0:00:02]} 45. d5+ {[%emt 0:00:54]} Kf6 {[%emt 0:00:03]} 46. d6 {[%emt 0:00:09]} Bf8 {[%emt 0:00:13]} 47. Kd5 {[%emt 0:00:12]} a5 {[%emt 0:00:31]} 48. c6 {[%emt 0:42:31]} 1-0